lending/lending_fUSD_20250131
["ID","MTS","AMOUNT","RATE_DAILY","PERIOD"]
[351042037,1738305079330,-500.0,0.00020136,3]
[351042038,1738305079340,-500.0,0.00020136,3]
[351042039,1738305079350,-597.83,0.00020136,3]
[351042040,1738305079360,-500.0,0.00020136,3]
[351042041,1738305079370,-500.0,0.00020136,3]
[351042042,1738305079380,-500.0,0.00020136,3]
[351042043,1738305079390,-500.0,0.00020136,3]
[351042044,1738305079400,-500.0,0.00020136,3]
[351042045,1738305079410,-500.0,0.00020136,3]
[351042046,1738305079420,-500.0,0.00020136,3]
[351042047,1738305079430,-500.0,0.00020136,3]
[351042048,1738305079440,-500.0,0.00020136,3]
[351042049,1738305079450,-449.42146423,0.00020136,3]
[351042050,1738305079459,-500.0,0.00020136,3]
[351042051,1738305079470,-150.823464,0.00020136,3]
[351042052,1738305079480,-892.45,0.00020136,3]
[351042053,1738305079490,-500.0,0.00020136,3]
[351042054,1738305079500,-500.0,0.00020136,3]
[351042055,1738305079510,-500.0,0.00020136,3]
[351042056,1738305079520,-500.0,0.00020136,3]
[351042057,1738305079530,-621.91,0.00020136,3]
[351042058,1738305079539,-500.0,0.00020136,3]
[351042059,1738305079549,-500.0,0.00020136,3]
[351042060,1738305079559,-945.02,0.00020136,3]
[351042061,1738305079568,-500.0,0.00020136,3]
[351042062,1738305079579,-644.88,0.00020136,3]
[351042063,1738305079589,-839.16,0.00020136,3]
[351042064,1738305079599,-643.82,0.00020136,3]
[351042065,1738305079609,-500.0,0.00020136,3]
[351042066,1738305079619,-500.0,0.00020136,3]
[351042067,1738305079633,-534.48,0.00020136,3]
[351042068,1738305079643,-500.0,0.00020136,3]
[351042069,1738305079653,-500.0,0.00020136,3]
[351042070,1738305079663,-500.0,0.00020136,3]
[351042071,1738305079673,-624.54,0.00020136,3]
[351042072,1738305079683,-500.0,0.00020136,3]
[351042073,1738305079694,-500.0,0.00020136,3]
[351042074,1738305079705,-748.93,0.00020136,3]
[351042075,1738305079715,-500.0,0.00020136,3]
[351042076,1738305079725,-629.81,0.00020136,3]
[351042077,1738305079735,-525.19913162,0.00020136,3]
[351042078,1738305079744,-500.0,0.00020136,3]
[351042079,1738305079754,-1029.5,0.00020136,3]
[351042080,1738305079764,-510.4,0.00020136,3]
[351042081,1738305079773,-1069.89,0.00020136,3]
[351042082,1738305079783,-188.33460989,0.00020136,3]
[351042083,1738305079794,-1261.9,0.00020136,3]
[351042084,1738305079804,-500.0,0.00020136,3]
[351042085,1738305079979,-500.0,0.00020136,3]
[351042086,1738305079989,-527.96,0.00020136,3]
[351042087,1738305079999,-509.27,0.00020136,3]
[351042088,1738305080009,-999.51,0.00020136,3]
[351042089,1738305080019,-1002.1,0.00020136,3]
[351042090,1738305080027,-787.81,0.00020136,3]
[351042091,1738305080036,-564.05,0.00020136,3]
[351042092,1738305080046,-657.22,0.00020136,3]
[351042093,1738305080055,-1484.08,0.00020136,3]
[351042094,1738305080064,-657.63,0.00020136,3]
[351042095,1738305080073,-698.29,0.00020136,3]
[351042096,1738305080083,-637.86,0.00020136,3]
[351042097,1738305080093,-500.0,0.00020136,3]
[351042098,1738305080102,-500.0,0.00020136,3]
[351042099,1738305080111,-813.38,0.00020136,3]
[351042100,1738305080122,-507.86036941,0.00020136,3]
[351042101,1738305080131,-669.6,0.00020136,3]
[351042102,1738305080141,-500.0,0.00020136,3]
[351042103,1738305080151,-577.58,0.00020136,3]
[351042104,1738305080160,-636.74,0.00020136,3]
[351042105,1738305080170,-621.08,0.00020136,3]
[351042106,1738305080179,-619.94,0.00020136,3]
[351042107,1738305080191,-500.0,0.00020136,3]
[351042108,1738305080200,-1585.17,0.00020136,3]
[351042109,1738305080210,-500.0,0.00020136,3]
[351042110,1738305080220,-1674.68,0.00020136,3]
[351042111,1738305080229,-514.86,0.00020136,3]
[351042112,1738305080239,-592.24,0.00020136,3]
[351042113,1738305080251,-587.16,0.00020136,3]
[351042114,1738305080260,-589.61,0.00020136,3]
[351042115,1738305080269,-1014.15,0.00020136,3]
[351042116,1738305080279,-508.89,0.00020136,3]
[351042117,1738305080289,-594.29,0.00020136,3]
[351042118,1738305080299,-500.0,0.00020136,3]
[351042119,1738305080309,-596.58,0.00020136,3]
[351042120,1738305080320,-500.0,0.00020136,3]
[351042121,1738305080329,-571.22,0.00020136,3]
[351042122,1738305080338,-500.0,0.00020136,3]
[351042123,1738305080347,-579.26,0.00020136,3]
[351042124,1738305080358,-500.0,0.00020136,3]
[351042125,1738305080367,-885.01,0.00020136,3]
[351042126,1738305080375,-623.55,0.00020136,3]
[351042127,1738305080385,-1002.67,0.00020136,3]
[351042128,1738305080395,-500.0,0.00020136,3]
[351042129,1738305080403,-1096.16,0.00020136,3]
[351042130,1738305080414,-500.0,0.00020136,3]
[351042131,1738305080424,-741.76,0.00020136,3]
[351042132,1738305080433,-786.28,0.00020136,3]
[351042133,1738305080442,-500.0,0.00020136,3]
[351042134,1738305080451,-645.76,0.00020136,3]
[351042135,1738305080463,-500.0,0.00020136,3]
[351042136,1738305080473,-510.85,0.00020136,3]
[351042137,1738305080483,-500.0,0.00020136,3]
[351042138,1738305080493,-994.37,0.00020136,3]
[351042139,1738305080504,-500.0,0.00020136,3]
[351042140,1738305080514,-219.33248783,0.00020136,3]
[351042141,1738305080525,-706.6,0.00020136,3]
[351042142,1738305080535,-612.52,0.00020136,3]
[351042143,1738305080545,-1207.91,0.00020136,3]
[351042144,1738305080555,-791.36,0.00020136,3]
[351042145,1738305080564,-1013.39,0.00020136,3]
[351042146,1738305080573,-904.4,0.00020136,3]
[351042147,1738305080584,-500.0,0.00020136,3]
[351042148,1738305080593,-500.0,0.00020136,3]
[351042149,1738305080603,-500.0,0.00020136,3]
[351042150,1738305080614,-500.0,0.00020136,3]
[351042151,1738305080624,-517.64,0.00020136,3]
[351042152,1738305080637,-585.25,0.00020136,2]
[351042153,1738305080647,-1289.82,0.00020136,3]
[351042154,1738305080656,-611.17,0.00020136,3]
[351042155,1738305080665,-948.72,0.00020136,3]
[351042156,1738305080675,-500.0,0.00020136,3]
[351042157,1738305080684,-634.51,0.00020136,3]
[351042158,1738305080695,-1063.96,0.00020136,3]
[351042159,1738305080706,-565.48,0.00020136,3]
[351042160,1738305080717,-500.0,0.00020136,3]
[351042161,1738305080726,-731.2,0.00020136,3]
[351042162,1738305080735,-500.0,0.00020136,3]
[351042163,1738305080746,-625.92,0.00020136,3]
[351042164,1738305080756,-500.0,0.00020136,3]
[351042165,1738305080766,-888.22,0.00020136,3]
[351042166,1738305080776,-500.0,0.00020136,3]
[351042167,1738305080786,-747.79,0.00020136,3]
[351042168,1738305080796,-753.31,0.00020136,3]
[351042169,1738305080806,-500.0,0.00020136,3]
[351042170,1738305080816,-813.15,0.00020136,3]
[351042171,1738305080826,-500.0,0.00020136,3]
[351042172,1738305080835,-587.71,0.00020136,3]
[351042173,1738305080844,-526.0,0.00020136,3]
[351042174,1738305080854,-500.0,0.00020136,3]
[351042175,1738305080863,-500.0,0.00020136,3]
[351042176,1738305080872,-1170.95,0.00020136,3]
[351042177,1738305080882,-680.12,0.00020136,3]
[351042178,1738305080892,-713.89,0.00020136,3]
[351042179,1738305080901,-1073.91,0.00020136,3]
[351042180,1738305080910,-703.88,0.00020136,3]
[351042181,1738305080922,-676.92,0.00020136,3]
[351042182,1738305080934,-1486.98,0.00020136,3]
[351042183,1738305080944,-1628.4,0.00020136,3]
[351042184,1738305080953,-887.83,0.00020136,3]
[351042185,1738305080962,-605.81,0.00020136,3]
[351042186,1738305080972,-750.42,0.00020136,3]
[351042187,1738305080981,-500.0,0.00020136,3]
[351042188,1738305080990,-1440.62,0.00020136,3]
[351042189,1738305080999,-702.9,0.00020136,3]
[351042190,1738305081008,-500.0,0.00020136,3]
[351042191,1738305081017,-1568.12,0.00020136,3]
[351042192,1738305081027,-629.08,0.00020136,3]
[351042193,1738305081036,-614.57,0.00020136,3]
[351042194,1738305081045,-660.86,0.00020136,3]
[351042195,1738305081054,-814.9,0.00020136,3]
[351042196,1738305081064,-500.0,0.00020136,3]
[351042197,1738305081073,-1203.73,0.00020136,3]
[351042198,1738305081083,-500.0,0.00020136,3]
[351042199,1738305081092,-1186.22,0.00020136,3]
[351042200,1738305081101,-1147.47,0.00020136,3]
[351042201,1738305081110,-540.01,0.00020136,3]
[351042202,1738305081120,-524.52,0.00020136,3]
[351042203,1738305081129,-500.0,0.00020136,3]
[351042204,1738305081138,-500.0,0.00020136,3]
[351042205,1738305081147,-881.63,0.00020136,3]
[351042206,1738305081157,-967.81,0.00020136,3]
[351042207,1738305081166,-534.57,0.00020136,3]
[351042208,1738305081175,-500.0,0.00020136,3]
[351042209,1738305081184,-195.41818857,0.00020136,3]
[351042210,1738305081194,-500.0,0.00020136,3]
[351042211,1738305081203,-1375.8,0.00020136,3]
[351042212,1738305081212,-2064.31,0.00020136,3]
[351042213,1738305081221,-1371.89,0.00020136,3]
[351042214,1738305081230,-693.79,0.00020136,3]
[351042215,1738305081239,-567.83,0.00020136,3]
[351042216,1738305081248,-1170.58,0.00020136,3]
[351042217,1738305081258,-191.95039277,0.00020136,3]
[351042218,1738305081268,-1657.08,0.00020136,3]
[351042219,1738305081278,-1028.74,0.00020136,3]
[351042220,1738305081288,-997.27,0.00020136,3]
[351042221,1738305081298,-500.0,0.00020136,3]
[351042222,1738305081308,-150.823465,0.00020136,3]
[351042223,1738305081318,-709.71,0.00020136,3]
[351042224,1738305081327,-500.0,0.00020136,3]
[351042225,1738305081337,-622.48,0.00020136,3]
[351042226,1738305081346,-1222.79,0.00020136,3]
[351042227,1738305081355,-1025.99,0.00020136,3]
[351042228,1738305081364,-500.0,0.00020136,3]
[351042229,1738305081373,-500.0,0.00020136,3]
[351042230,1738305081382,-579.62,0.00020136,3]
[351042231,1738305081392,-1306.27,0.00020136,3]
[351042232,1738305081401,-1132.77,0.00020136,3]
[351042233,1738305081411,-515.15,0.00020136,3]
[351042234,1738305081420,-567.93,0.00020136,3]
[351042235,1738305081430,-1749.85,0.00020136,3]
[351042236,1738305081439,-733.92,0.00020136,3]
[351042237,1738305081448,-1277.79,0.00020136,3]
[351042238,1738305081457,-1044.01,0.00020136,2]
[351042239,1738305081466,-500.0,0.00020136,3]
[351042240,1738305081476,-500.0,0.00020136,3]
[351042241,1738305081486,-2092.2,0.00020136,3]
[351042242,1738305081496,-6599.4,0.00020136,3]
[351042243,1738305081505,-500.0,0.00020136,3]
[351042244,1738305081514,-1349.63,0.00020136,3]
[351042245,1738305081524,-623.6,0.00020136,3]
[351042246,1738305081533,-500.0,0.00020136,3]
[351042247,1738305081543,-1162.34,0.00020136,3]
[351042248,1738305081553,-500.0,0.00020136,3]
[351042249,1738305081563,-704.49,0.00020136,3]
[351042250,1738305081572,-2843.11,0.00020136,3]
[351042251,1738305081582,-500.0,0.00020136,3]
[351042252,1738305081591,-500.0,0.00020136,3]
[351042253,1738305081602,-1467.74,0.00020136,3]
[351042254,1738305081612,-500.0,0.00020136,3]
[351042255,1738305081621,-500.0,0.00020136,3]
[351042256,1738305081633,-2381.94,0.00020136,3]
[351042257,1738305081643,-500.0,0.00020136,3]
[351042258,1738305081653,-1324.74,0.00020136,3]
[351042259,1738305081662,-1349.56,0.00020136,3]
[351042260,1738305081673,-500.0,0.00020136,3]
[351042261,1738305081683,-1017.43,0.00020136,3]
[351042262,1738305081693,-2091.67,0.00020136,3]
[351042263,1738305081703,-1259.58,0.00020136,3]
[351042264,1738305081715,-500.0,0.00020136,3]
[351042265,1738305081725,-3116.59,0.00020136,3]
[351042266,1738305081735,-1719.88,0.00020136,3]
[351042267,1738305081745,-2234.71,0.00020136,3]
[351042268,1738305081754,-666.18,0.00020136,3]
[351042269,1738305081764,-740.76,0.00020136,3]
[351042270,1738305081773,-906.12,0.00020136,3]
[351042271,1738305081783,-4876.27,0.00020136,3]
[351042272,1738305081793,-1298.89,0.00020136,3]
[351042273,1738305081804,-819.25,0.00020136,3]
[351042274,1738305081813,-695.87,0.00020136,3]
[351042275,1738305081823,-500.0,0.00020136,3]
[351042276,1738305081834,-1699.86,0.00020136,3]
[351042277,1738305081843,-2758.75,0.00020136,3]
[351042278,1738305081854,-500.0,0.00020136,3]
[351042279,1738305081863,-3201.18,0.00020136,3]
[351042280,1738305081872,-500.0,0.00020136,3]
[351042281,1738305081882,-3315.06,0.00020136,3]
[351042282,1738305081891,-738.95,0.00020136,3]
[351042283,1738305081900,-842.74,0.00020136,3]
[351042284,1738305081910,-500.0,0.00020136,3]
[351042285,1738305081919,-2477.82,0.00020136,3]
[351042286,1738305081929,-1149.21,0.00020136,3]
[351042287,1738305081940,-6509.57,0.00020136,3]
[351042288,1738305081950,-771.98,0.00020136,3]
[351042289,1738305081959,-1331.02,0.00020136,3]
[351042290,1738305081969,-500.0,0.00020136,3]
[351042291,1738305081978,-1406.67,0.00020136,3]
[351042292,1738305081988,-16710.32,0.00020136,3]
[351042293,1738305082000,-1691.16,0.00020136,3]
[351042294,1738305082011,-500.0,0.00020136,3]
[351042295,1738305082020,-1770.42,0.00020136,3]
[351042296,1738305082029,-500.0,0.00020136,3]
[351042297,1738305082039,-1059.79,0.00020136,3]
[351042298,1738305082049,-1589.13,0.00020136,3]
[351042299,1738305082059,-684.17,0.00020136,3]
[351042300,1738305082070,-1904.76,0.00020136,3]
[351042301,1738305082080,-500.0,0.00020136,3]
[351042302,1738305082089,-2243.64,0.00020136,3]
[351042303,1738305082099,-1607.08,0.00020136,3]
[351042304,1738305082108,-500.0,0.00020136,3]
[351042305,1738305082117,-500.0,0.00020136,3]
[351042306,1738305082127,-8728.29,0.00020136,3]
[351042307,1738305082136,-916.1,0.00020136,3]
[351042308,1738305082146,-2460.64,0.00020136,3]
[351042309,1738305082155,-1056.49,0.00020136,3]
[351042310,1738305082167,-1532.03,0.00020136,3]
[351042311,1738305082178,-9116.32,0.00020136,3]
[351042312,1738305082188,-4841.93,0.00020136,3]
[351042313,1738305082198,-2051.41,0.00020136,3]
[351042314,1738305082207,-3924.2,0.00020136,3]
[351042315,1738305082218,-5218.86,0.00020136,3]
[351042316,1738305082227,-1447.74,0.00020136,3]
[351042317,1738305082237,-1383.2,0.00020136,3]
[351042318,1738305082246,-591.16,0.00020136,3]
[351042319,1738305082255,-625.0,0.00020136,3]
[351042320,1738305082264,-3735.73,0.00020136,3]
[351042321,1738305082274,-3624.11,0.00020136,3]
[351042322,1738305082284,-2417.21,0.00020136,3]
[351042323,1738305082294,-2287.83,0.00020136,3]
[351042324,1738305082305,-1686.1,0.00020136,3]
[351042325,1738305082314,-762.72,0.00020136,3]
[351042326,1738305082323,-5194.55,0.00020136,3]
[351042327,1738305082333,-502.65,0.00020136,3]
[351042328,1738305082342,-500.0,0.00020136,3]
[351042329,1738305082352,-1053.48,0.00020136,3]
[351042330,1738305082361,-1780.0,0.00020136,3]
[351042331,1738305082371,-1463.48,0.00020136,3]
[351042332,1738305082381,-4635.87,0.00020136,3]
[351042333,1738305082391,-9953.84,0.00020136,3]
[351042334,1738305082401,-509.26,0.00020136,3]
[351042335,1738305082411,-5346.59,0.00020136,3]
[351042336,1738305082420,-2428.73,0.00020136,3]
[351042337,1738305082430,-2702.64,0.00020136,3]
[351042338,1738305082438,-2686.86,0.00020136,3]
[351042339,1738305082449,-1018.98,0.00020136,3]
[351042340,1738305082459,-911.08,0.00020136,3]
[351042341,1738305082468,-841.09,0.00020136,3]
[351042342,1738305082478,-1934.18,0.00020136,3]
[351042343,1738305082488,-3270.62,0.00020136,3]
[351042344,1738305082497,-9393.9,0.00020136,3]
[351042345,1738305082508,-3812.71,0.00020136,3]
[351042346,1738305082519,-1562.13,0.00020136,3]
[351042347,1738305082529,-898.06,0.00020136,3]
[351042348,1738305082539,-3520.86,0.00020136,3]
[351042349,1738305082549,-685.72,0.00020136,3]
[351042350,1738305082558,-3882.4,0.00020136,3]
[351042351,1738305082567,-8126.78,0.00020136,3]
[351042352,1738305082577,-500.0,0.00020136,3]
[351042353,1738305082586,-1656.89,0.00020136,3]
[351042354,1738305082596,-2893.08,0.00020136,3]
[351042355,1738305082606,-1770.12,0.00020136,3]
[351042356,1738305082616,-6696.12,0.00020136,3]
[351042357,1738305082627,-8324.65,0.00020136,3]
[351042358,1738305082639,-2584.33,0.00020136,3]
[351042359,1738305082648,-6857.56,0.00020136,3]
[351042360,1738305082657,-4353.28,0.00020136,3]
[351042361,1738305082667,-748.5,0.00020136,3]
[351042362,1738305082676,-500.0,0.00020136,3]
[351042363,1738305082686,-500.0,0.00020136,3]
[351042364,1738305082696,-8823.7,0.00020136,3]
[351042365,1738305082707,-892.21,0.00020136,3]
[351042366,1738305082717,-554.54,0.00020136,3]
[351042367,1738305082727,-1643.4,0.00020136,3]
[351042368,1738305082736,-2547.58,0.00020136,3]
[351042369,1738305082746,-500.0,0.00020136,3]
[351042370,1738305082756,-3407.2,0.00020136,3]
[351042371,1738305082765,-2444.23,0.00020136,3]
[351042372,1738305082774,-500.0,0.00020136,3]
[351042373,1738305082785,-2068.07,0.00020136,3]
[351042374,1738305082795,-500.0,0.00020136,3]
[351042375,1738305082804,-870.32,0.00020136,3]
[351042376,1738305082814,-1787.06,0.00020136,3]
[351042377,1738305082823,-538.79,0.00020136,3]
[351042378,1738305082834,-646.98,0.00020136,3]
[351042379,1738305082844,-904.46,0.00020136,2]
[351042380,1738305082854,-4275.8,0.00020136,3]
[351042381,1738305082864,-1152.43,0.00020136,3]
[351042382,1738305082873,-683.31,0.00020136,3]
[351042383,1738305082883,-4182.25,0.00020136,3]
[351042384,1738305082893,-2459.19,0.00020136,3]
[351042385,1738305082902,-10947.16,0.00020136,3]
[351042386,1738305082912,-935.69,0.00020136,3]
[351042387,1738305082922,-1432.03,0.00020136,3]
[351042388,1738305082932,-2829.34,0.00020136,3]
[351042389,1738305082942,-1345.96,0.00020136,3]
[351042390,1738305082951,-3565.35,0.00020136,3]
[351042391,1738305082961,-3543.44,0.00020136,3]
[351042392,1738305082971,-2298.22,0.00020136,3]
[351042393,1738305082980,-500.0,0.00020136,3]
[351042394,1738305082989,-500.0,0.00020136,3]
[351042395,1738305082999,-500.0,0.00020136,3]
[351042396,1738305083009,-500.0,0.00020136,3]
[351042397,1738305083018,-1291.99,0.00020136,3]
[351042398,1738305083028,-1278.48,0.00020136,3]
[351042399,1738305083037,-950.79,0.00020136,3]
[351042400,1738305083047,-1386.34,0.00020136,3]
[351042401,1738305083057,-3756.07,0.00020136,3]
[351042402,1738305083066,-1884.67,0.00020136,3]
[351042403,1738305083076,-1555.45,0.00020136,3]
[351042404,1738305083085,-4405.08,0.00020136,3]
[351042405,1738305083095,-500.0,0.00020136,3]
[351042406,1738305083105,-1376.94,0.00020136,3]
[351042407,1738305083115,-1197.53,0.00020136,3]
[351042408,1738305083124,-1263.64,0.00020136,3]
[351042409,1738305083134,-500.0,0.00020136,3]
[351042410,1738305083143,-2409.26,0.00020136,3]
[351042411,1738305083153,-500.0,0.00020137,3]
[351042412,1738305083163,-245.57310874,0.0002014,2]
[351042413,1738305083173,-150.0,0.00020148,4]
[351042414,1738305083182,-500.0,0.00020159,2]
[351042415,1738305083192,-826.18401049,0.00020164,3]
[351042416,1738305083201,-449.686419,0.00020165,2]
[351042417,1738305083210,-2506.6,0.00020182,2]
[351042418,1738305083219,-208.3632214,0.00020186,2]
[351042419,1738305083228,-208.3632214,0.00020186,2]
[351042420,1738305083238,-539.3885832,0.00020186,2]
[351042421,1738305083247,-320.2999472,0.00020186,2]
[351042422,1738305083257,-269.6821527,0.00020186,2]
[351042423,1738305083439,-269.6821527,0.00020186,2]
[351042424,1738305083449,-526.2663801,0.00020186,2]
[351042425,1738305083459,-530.2620755,0.00020186,2]
[351042426,1738305083469,-4125.9575953,0.00020186,2]
[351042427,1738305083478,-4157.2840686,0.00020186,2]
[351042428,1738305083487,-200.0,0.00020192,2]
[351042429,1738305083498,-402.43383823,0.000202,2]
[351042430,1738305083507,-241.46030294,0.000202,2]
[351042431,1738305083516,-160.97353529,0.000202,2]
[351042432,1738305083526,-324968.13399338,0.000202,2]
[351042433,1738305083535,-113310.05630299,0.000202,2]
[351042434,1738305083545,-105136.5423652,0.000202,2]
[351042435,1738305083554,-1206958.90644954,0.000202,2]
[351042436,1738305083564,-5800.0,0.000202,2]
[351042437,1738305083573,-4669.5533083,0.000202,2]
[351042438,1738305083584,-5754.79,0.000202,2]
[351042439,1738305083594,-422962.44287104,0.000202,2]
[351042440,1738305083604,-150.0,0.00020217,4]
[351042441,1738305083614,-2735.0,0.00020231,11]
[351042442,1738305083625,-150.0,0.00020231,4]
[351042443,1738305083635,-150.0,0.00020231,4]
[351042444,1738305083645,-3314597.62150827,0.0002024,2]
[351042445,1738305084043,-461.429366,0.0002024,2]
[351042446,1738305084059,-3999.56086381,0.0002024,2]
[351042447,1738305084078,-471.38721581,0.00019178,2]
[351042448,1738305084089,-28.61278419,0.00019178,2]
[351042449,1738305084098,-297.43066666,0.0002024,2]
[351042450,1738305084441,-6155.53103416,0.00012356,2]
[351042451,1738305084451,-250.86736584,0.00019315,3]
[351042452,1738305084463,-249.13263416,0.00019315,3]
[351042453,1738305084472,-500.0,0.00019452,3]
[351042454,1738305084482,-500.0,0.00019589,3]
[351042455,1738305084491,-500.0,0.00019726,3]
[351042456,1738305084501,-500.0,0.00019863,3]
[351042457,1738305084511,-1099.02,0.0002,3]
[351042458,1738305084520,-500.0,0.0002,3]
[351042459,1738305084530,-1099.02,0.00020136,3]
[351042460,1738305084539,-171.63838085,0.0002024,2]
[351042461,1738305084551,-324.47000001,0.0002024,2]
[351042462,1738305084563,-292.560002,0.0002024,2]
[351042463,1738305084574,-4180.0,0.0002024,2]
[351042464,1738305084586,-3323.97037027,0.0002024,2]
[351042465,1738305084598,-23504.89552053,0.0002024,2]
[351042466,1738305084610,-45325.1969179,0.0002024,2]
[351042467,1738305084645,-500.0,0.00019178,2]
[351042468,1738305084655,-500.0,0.00020136,3]
[351042469,1738305084664,-30578.83969354,0.0002024,2]
[351042470,1738305085214,-500.0,0.00019178,2]
[351042471,1738305085223,-500.0,0.00019178,2]
[351042472,1738305085233,-500.0,0.00019178,2]
[351042473,1738305085242,-500.0,0.00019315,3]
[351042474,1738305085251,-500.0,0.00019315,3]
[351042475,1738305085260,-500.0,0.00019315,3]
[351042476,1738305085269,-500.0,0.00019315,3]
[351042477,1738305085278,-180.38,0.00019452,3]
[351042478,1738305085289,-500.0,0.00019452,3]
[351042479,1738305085299,-500.0,0.00019452,3]
[351042480,1738305085309,-500.0,0.00019589,3]
[351042481,1738305085318,-500.0,0.00019589,3]
[351042482,1738305085329,-520.68,0.00019726,3]
[351042483,1738305085338,-500.0,0.00019726,3]
[351042484,1738305085348,-201.56961271,0.00019849,3]
[351042485,1738305085357,-500.0,0.00019863,3]
[351042486,1738305085367,-58029.37038728,0.0002024,2]
[351042487,1738305085378,-396669.05778156,0.0002024,2]
[351042488,1738305085394,-500.0,0.0002,3]
[351042489,1738305085403,-498.07479799,0.0002024,2]
[351042490,1738305085761,-324.485,0.00013211,2]
[351042491,1738305085797,-897.93868288,0.00013211,2]
[351042492,1738305085876,-4933.10735128,0.00013211,2]
[351042493,1738305085895,-500.0,0.00019178,2]
[351042494,1738305085905,-500.0,0.00019178,2]
[351042495,1738305085915,-500.0,0.00019315,3]
[351042496,1738305085925,-367.0,0.000194,2]
[351042497,1738305085935,-518.74,0.00019452,3]
[351042498,1738305085945,-500.0,0.00019452,3]
[351042499,1738305085955,-500.0,0.00019589,3]
[351042500,1738305085969,-414.45294872,0.00019726,3]
[351042506,1738305995177,1121.26533946,0.00021662,120]
[351042511,1738306153117,-405.37,0.00010137,2]
[351042512,1738306153138,-167.38,0.00011867,2]
[351042513,1738306153159,-550.0,0.00013,2]
[351042514,1738306153180,-629.25,0.00013041,2]
[351042515,1738306153202,-300.0,0.00013293,2]
[351042516,1738306153223,-764.391816,0.00013294,2]
[351042527,1738306232329,-200.04302972,0.00013294,2]
[351042528,1738306232340,-150.0,0.00013525,2]
[351042529,1738306232349,-1059.0,0.00013645,2]
[351042530,1738306232358,-200.0430297,0.00014097,2]
[351042531,1738306232368,-150.0,0.00014104,2]
[351042532,1738306232377,-2540.91394058,0.00014104,2]
[351042533,1738306232464,-3450.0,0.00014104,2]
[351042534,1738306232604,-311.07903888,0.00014104,2]
[351042535,1738306232616,-5137.31145408,0.00014104,2]
[351042536,1738306232627,-4027.87675746,0.00014104,2]
[351042537,1738306232636,-1059.0,0.00014364,2]
[351042538,1738306232645,-150.0,0.00014531,2]
[351042539,1738306232655,-186.12324252,0.00014819,2]
[351042540,1738306232669,-550.99707701,0.00014819,2]
[351042541,1738306232684,-101.35968047,0.00014819,2]
[351042542,1738306232697,-4179.96,0.00014834,2]
[351042543,1738306232711,-23900.0,0.00014834,2]
[351042544,1738306232723,-599.93411414,0.00014846,2]
[351042545,1738306232801,-400.06588586,0.00014846,2]
[351042546,1738306232813,-200.0,0.00014899,2]
[351042547,1738306232826,-200.0430297,0.000149,2]
[351042548,1738306232838,-859.85,0.00014918,2]
[351042549,1738306232851,-600.0,0.00015,2]
[351042550,1738306232863,-1059.0,0.0001512,2]
[351042551,1738306232876,-629.25,0.00015305,2]
[351042552,1738306232889,-4179.96,0.00015575,2]
[351042553,1738306232901,-250.0,0.00015817,2]
[351042554,1738306232912,-670.33,0.00015855,2]
[351042555,1738306232925,-170.42,0.00015865,2]